fUST/lending_fUST_20240218
["ID","MTS","AMOUNT","RATE_DAILY","PERIOD"]
[314363794,1708233043322,-885.49,0.00027945,2]
[314363795,1708233043332,-390.0,0.00027945,2]
[314363797,1708233043341,-576.93,0.00027945,2]
[314363799,1708233043350,-500.0,0.00027945,2]
[314363801,1708233043359,-733.54,0.00027945,2]
[314363804,1708233043368,-5764.51,0.00027945,2]
[314363805,1708233043377,-500.0,0.00027945,2]
[314363807,1708233043387,-500.0,0.00027945,2]
[314363809,1708233043396,-500.0,0.00027945,2]
[314363811,1708233043406,-500.0,0.00027945,2]
[314363814,1708233043416,-4498.25,0.00027945,2]
[314363815,1708233043425,-500.0,0.00027945,2]
[314363817,1708233043434,-500.0,0.00027945,2]
[314363819,1708233043444,-4567.82,0.00027945,2]
[314363820,1708233043453,-500.0,0.00027945,2]
[314363821,1708233043462,-500.0,0.00027945,2]
[314363822,1708233043471,-3725.87,0.00027945,2]
[314363823,1708233043481,-268.12799793,0.00027945,2]
[314363824,1708233043490,-866.08,0.00027945,2]
[314363825,1708233043499,-500.0,0.00027945,2]
[314363826,1708233043509,-500.0,0.00027945,2]
[314363827,1708233043517,-500.0,0.00027945,2]
[314363828,1708233043528,-500.0,0.00027945,2]
[314363829,1708233043537,-500.0,0.00027945,2]
[314363830,1708233043547,-500.0,0.00027945,2]
[314363831,1708233043556,-585.1,0.00027945,2]
[314363832,1708233043564,-517.84,0.00027945,2]
[314363833,1708233043574,-820.22,0.00027945,2]
[314363834,1708233043583,-500.0,0.00027945,2]
[314363835,1708233043593,-500.0,0.00027945,2]
[314363836,1708233043602,-519.71443797,0.00027945,2]
[314363837,1708233043611,-534.11514124,0.00027945,2]
[314363838,1708233043620,-701.68,0.00027945,2]
[314363839,1708233043631,-500.0,0.00027945,2]
[314363840,1708233043641,-1859.21,0.00027945,2]
[314363841,1708233043651,-3017.91,0.00027945,2]
[314363842,1708233043660,-500.0,0.00027945,2]
[314363843,1708233043669,-500.0,0.00027945,2]
[314363844,1708233043679,-500.0,0.00027945,2]
[314363845,1708233043688,-650.52,0.00027945,2]
[314363846,1708233043698,-993.72,0.00027945,2]
[314363847,1708233043707,-500.0,0.00027945,2]
[314363848,1708233043717,-500.0,0.00027945,2]
[314363849,1708233043727,-3539.24,0.00027945,2]
[314363850,1708233043736,-590.46145876,0.00027945,2]
[314363851,1708233043745,-153.0,0.00027945,2]
[314363852,1708233043755,-200.3193593,0.00027945,2]
[314363853,1708233043764,-153.0,0.00027945,2]
[314363854,1708233043775,-153.0,0.00027945,2]
[314363855,1708233043784,-153.0,0.00027945,2]
[314363856,1708233043793,-200.3472215,0.00027945,2]
[314363857,1708233043802,-153.0,0.00027945,2]
[314363858,1708233043811,-153.0,0.00027945,2]
[314363859,1708233043821,-153.0,0.00027945,2]
[314363860,1708233043830,-200.3193593,0.00027945,2]
[314363861,1708233043840,-200.3193593,0.00027945,2]
[314363862,1708233043849,-183.84389226,0.00028119,2]
[314363863,1708233043858,-500.0,0.00028219,2]
[314363864,1708233043868,-500.0,0.00028219,2]
[314363865,1708233043877,-500.0,0.00028219,2]
[314363866,1708233043886,-500.0,0.00028219,2]
[314363867,1708233043895,-500.0,0.00028219,2]
[314363868,1708233043904,-500.0,0.00028219,2]
[314363869,1708233043913,-500.0,0.00028219,2]
[314363870,1708233043923,-185.60340881,0.00028219,2]
[314363871,1708233043931,-500.0,0.00028219,2]
[314363872,1708233043940,-993.84,0.00028219,2]
[314363873,1708233043949,-500.0,0.00028219,2]
[314363874,1708233043958,-394.90630849,0.00028219,2]
[314363875,1708233043967,-923.26,0.00028219,2]
[314363876,1708233043975,-500.0,0.00028219,2]
[314363877,1708233043984,-151.0,0.00028219,2]
[314363878,1708233043993,-504.67487428,0.00028219,2]
[314363879,1708233044002,-500.0,0.00028219,2]
[314363880,1708233044011,-500.0,0.00028219,2]
[314363881,1708233044020,-505.45,0.00028219,2]
[314363882,1708233044031,-505.06050366,0.00028219,2]
[314363883,1708233044040,-618.67348345,0.00028219,2]
[314363884,1708233044049,-500.0,0.00028219,2]
[314363885,1708233044058,-500.0,0.00028219,2]
[314363886,1708233044067,-500.0,0.00028219,2]
[314363887,1708233044076,-589.98,0.00028219,2]
[314363888,1708233044085,-500.0,0.00028219,2]
[314363889,1708233044094,-885.49,0.00028219,2]
[314363890,1708233044102,-576.93,0.00028219,2]
[314363891,1708233044111,-151.0,0.00028219,2]
[314363892,1708233044120,-733.54,0.00028219,2]
[314363893,1708233044129,-5764.51,0.00028219,2]
[314363894,1708233044138,-500.0,0.00028219,2]
[314363895,1708233044147,-151.0,0.00028219,2]
[314363896,1708233044157,-4498.25,0.00028219,2]
[314363897,1708233044166,-500.0,0.00028219,2]
[314363898,1708233044175,-4567.82,0.00028219,2]
[314363899,1708233044184,-500.0,0.00028219,2]
[314363900,1708233044193,-3725.87,0.00028219,2]
[314363901,1708233044202,-866.08,0.00028219,2]
[314363902,1708233044211,-500.0,0.00028219,2]
[314363903,1708233044220,-500.0,0.00028219,2]
[314363904,1708233044229,-500.0,0.00028219,2]
[314363905,1708233044298,-500.0,0.00028219,2]
[314363906,1708233044309,-151.0,0.00028219,2]
[314363907,1708233044322,-500.0,0.00028219,2]
[314363908,1708233044331,-585.1,0.00028219,2]
[314363909,1708233044341,-517.84,0.00028219,2]
[314363910,1708233044350,-820.22,0.00028219,2]
[314363911,1708233044360,-500.0,0.00028219,2]
[314363912,1708233044369,-500.0,0.00028219,2]
[314363913,1708233044379,-701.68,0.00028219,2]
[314363914,1708233044388,-1859.21,0.00028219,2]
[314363915,1708233044398,-3017.91,0.00028219,2]
[314363916,1708233044407,-500.0,0.00028219,2]
[314363917,1708233044416,-500.0,0.00028219,2]
[314363918,1708233044426,-650.52,0.00028219,2]
[314363919,1708233044435,-993.72,0.00028219,2]
[314363920,1708233044444,-3539.24,0.00028219,2]
[314363921,1708233044453,-500.0,0.00028493,2]
[314363922,1708233044462,-500.0,0.00028493,2]
[314363923,1708233044471,-500.0,0.00028493,2]
[314363924,1708233044481,-500.0,0.00028493,2]
[314363925,1708233044490,-500.0,0.00028493,2]
[314363926,1708233044499,-500.0,0.00028493,2]
[314363927,1708233044508,-516.56456327,0.00028493,2]
[314363928,1708233044517,-993.84,0.00028493,2]
[314363929,1708233044527,-923.26,0.00028493,2]
[314363930,1708233044536,-500.0,0.00028493,2]
[314363931,1708233044545,-500.0,0.00028493,2]
[314363932,1708233044554,-505.45,0.00028493,2]
[314363933,1708233044563,-500.0,0.00028493,2]
[314363934,1708233044572,-500.0,0.00028493,2]
[314363935,1708233044581,-500.0,0.00028493,2]
[314363936,1708233044591,-589.98,0.00028493,2]
[314363937,1708233044599,-500.0,0.00028493,2]
[314363938,1708233044608,-885.49,0.00028493,2]
[314363939,1708233044618,-576.93,0.00028493,2]
[314363940,1708233044626,-733.54,0.00028493,2]
[314363941,1708233044635,-5764.51,0.00028493,2]
[314363942,1708233044645,-500.0,0.00028493,2]
[314363943,1708233044654,-4498.25,0.00028493,2]
[314363944,1708233044663,-500.0,0.00028493,2]
[314363945,1708233044673,-4567.82,0.00028493,2]
[314363946,1708233044682,-500.0,0.00028493,2]
[314363947,1708233044691,-3725.87,0.00028493,2]
[314363948,1708233044700,-866.08,0.00028493,2]
[314363949,1708233044709,-500.0,0.00028493,2]
[314363950,1708233044719,-500.0,0.00028493,2]
[314363951,1708233044729,-500.0,0.00028493,2]
[314363952,1708233044739,-500.0,0.00028493,2]
[314363953,1708233044748,-151.0,0.00028493,2]
[314363954,1708233044757,-500.0,0.00028493,2]
[314363955,1708233044766,-585.1,0.00028493,2]
[314363956,1708233044776,-517.84,0.00028493,2]
[314363957,1708233044785,-820.22,0.00028493,2]
[314363958,1708233044794,-500.0,0.00028493,2]
[314363959,1708233044803,-500.0,0.00028493,2]
[314363960,1708233044813,-701.68,0.00028493,2]
[314363961,1708233044822,-1859.21,0.00028493,2]
[314363962,1708233044831,-3017.91,0.00028493,2]
[314363963,1708233044841,-500.0,0.00028493,2]
[314363964,1708233044849,-500.0,0.00028493,2]
[314363965,1708233044859,-650.52,0.00028493,2]
[314363966,1708233044867,-993.72,0.00028493,2]
[314363967,1708233044877,-3539.24,0.00028493,2]
[314363968,1708233044886,-183.8438922,0.00028549,2]
[314363969,1708233044896,-159.9605463,0.0002863,2]
[314363970,1708233044906,-503.1,0.00028657,3]
[314363971,1708233044916,-838.5,0.00028657,3]
[314363972,1708233044928,-285.34624526,0.00028766,2]
[314363973,1708233044938,-500.0,0.00028766,2]
[314363974,1708233044947,-500.0,0.00028766,2]
[314363975,1708233044957,-232.44792173,0.00028766,2]
[314363976,1708233044966,-500.0,0.00028766,2]
[314363977,1708233044975,-421.28045827,0.00028766,2]
[314363978,1708233044985,-500.0,0.00028766,2]
[314363979,1708233044994,-500.0,0.00028766,2]
[314363980,1708233045003,-500.0,0.00028766,2]
[314363981,1708233045012,-500.0,0.00028766,2]
[314363982,1708233045021,-500.0,0.00028766,2]
[314363983,1708233045031,-500.0,0.00028766,2]
[314363984,1708233045041,-195.95339384,0.00028766,2]
[314363985,1708233045050,-500.0,0.00028766,2]
[314363986,1708233045059,-151.0,0.00028766,2]
[314363987,1708233045068,-500.0,0.00028767,2]
[314363988,1708233045077,-500.0,0.00028767,2]
[314363989,1708233045086,-500.0,0.00028767,2]
[314363990,1708233045095,-500.0,0.00028767,2]
[314363991,1708233045103,-500.0,0.00028767,2]
[314363992,1708233045112,-500.0,0.00028767,2]
[314363993,1708233045121,-993.84,0.00028767,2]
[314363994,1708233045130,-923.26,0.00028767,2]
[314363995,1708233045139,-151.0,0.00028767,2]
[314363996,1708233045147,-500.0,0.00028767,2]
[314363997,1708233045156,-500.0,0.00028767,2]
[314363998,1708233045165,-505.45,0.00028767,2]
[314363999,1708233045174,-155.0,0.00028767,2]
[314364000,1708233045184,-500.0,0.00028767,2]
[314364001,1708233045192,-500.0,0.00028767,2]
[314364002,1708233045202,-500.0,0.00028767,2]
[314364003,1708233045211,-589.98,0.00028767,2]
[314364004,1708233045219,-500.0,0.00028767,2]
[314364005,1708233045228,-885.49,0.00028767,2]
[314364006,1708233045237,-576.93,0.00028767,2]
[314364007,1708233045247,-733.54,0.00028767,2]
[314364008,1708233045256,-5764.51,0.00028767,2]
[314364009,1708233045265,-500.0,0.00028767,2]
[314364010,1708233045274,-4498.25,0.00028767,2]
[314364011,1708233045283,-320.82364073,0.00028767,2]
[314364012,1708233045292,-4567.82,0.00028767,2]
[314364013,1708233045301,-500.0,0.00028767,2]
[314364014,1708233045313,-3725.87,0.00028767,2]
[314364015,1708233045323,-866.08,0.00028767,2]
[314364016,1708233045332,-500.0,0.00028767,2]
[314364017,1708233045342,-500.0,0.00028767,2]
[314364018,1708233045351,-500.0,0.00028767,2]
[314364019,1708233045360,-500.0,0.00028767,2]
[314364020,1708233045369,-500.0,0.00028767,2]
[314364021,1708233045378,-585.1,0.00028767,2]
[314364022,1708233045387,-517.84,0.00028767,2]
[314364023,1708233045398,-820.22,0.00028767,2]
[314364024,1708233045407,-500.0,0.00028767,2]
[314364025,1708233045416,-500.0,0.00028767,2]
[314364026,1708233045424,-701.68,0.00028767,2]
[314364027,1708233045433,-1859.21,0.00028767,2]
[314364028,1708233045442,-3017.91,0.00028767,2]
[314364029,1708233045452,-545.53329183,0.00028767,2]
[314364031,1708233045462,-500.0,0.00028767,2]
[314364032,1708233045471,-650.52,0.00028767,2]
[314364033,1708233045480,-993.72,0.00028767,2]
[314364034,1708233045490,-3539.24,0.00028767,2]
[314364035,1708233045500,-200.3193593,0.00028767,2]
[314364036,1708233045509,-200.3193593,0.00028767,2]
[314364037,1708233045518,-183.8438922,0.00028979,2]
[314364038,1708233045527,-281.99355911,0.00029,7]
[314364039,1708233045536,-348.67972211,0.0002904,2]
[314364040,1708233045545,-500.0,0.00029041,2]
[314364041,1708233045554,-500.0,0.00029041,2]
[314364042,1708233045563,-519.12545864,0.00029041,2]
[314364043,1708233045572,-500.0,0.00029041,2]
[314364044,1708233045582,-500.0,0.00029041,2]
[314364045,1708233045591,-500.0,0.00029041,2]
[314364046,1708233045600,-993.84,0.00029041,2]
[314364047,1708233045609,-923.26,0.00029041,2]
[314364048,1708233045618,-500.0,0.00029041,2]
[314364050,1708233045627,-500.0,0.00029041,2]
[314364052,1708233045636,-505.45,0.00029041,2]
[314364053,1708233045645,-500.0,0.00029041,2]
[314364055,1708233045654,-500.0,0.00029041,2]
[314364056,1708233045663,-500.0,0.00029041,2]
[314364059,1708233045732,-589.98,0.00029041,2]
[314364060,1708233045741,-601.70924849,0.00029041,2]
[314364061,1708233045750,-885.49,0.00029041,2]
[314364062,1708233045759,-576.93,0.00029041,2]
[314364063,1708233045769,-733.54,0.00029041,2]
[314364064,1708233045778,-2806.05184243,0.00029041,2]
[314364077,1708234165151,-273.55227487,0.00020862,2]
[314364078,1708234165171,-258.33133698,0.00020881,2]
[314364079,1708234165191,-2753.21662169,0.00020882,2]
[314364112,1708234232221,-226.47020812,0.00020882,2]
[314364114,1708234232230,-260.57222831,0.00022,2]
[314364249,1708234238183,-560.74415373,0.00022,2]
[314364250,1708234238192,-166.6666668,0.00024658,2]
[314364251,1708234238201,-396.1146747,0.0002501,2]
[314364252,1708234238359,-470.94318688,0.0002501,2]
[314364256,1708234241549,-9121.51686342,0.0002501,2]
[314364257,1708234241559,-679.60172287,0.00025216,2]
[314364258,1708234241568,-861.96404011,0.0002614,2]
[314364259,1708234241577,-6561.88698002,0.0002614,2]
[314364260,1708234241653,-329.7518327,0.0002614,2]
[314364299,1708234246238,-3474.1901254,0.0002614,2]
[314364300,1708234246248,-4998.72556294,0.0002614,2]
[314364301,1708234246257,-1241.10105278,0.00026393,2]
[314364302,1708234246266,-433.22,0.00027187,3]
[314364303,1708234246275,-216.61,0.00027187,3]
[314364304,1708234246283,-649.87,0.00027187,3]
[314364305,1708234246292,-439.85732164,0.00027187,3]
[314364367,1708235432431,-258.33133698,0.00021985,2]
[314364369,1708235432441,-273.55227487,0.00021986,2]
[314364371,1708235432450,-155.0294556,0.00022,2]
[314364373,1708235432459,-427.90583504,0.00022,2]
[314364375,1708235432469,-827.40070186,0.0002404,2]
[314364376,1708235432478,-218.2640539,0.00025134,2]
[314364377,1708235432488,-169.817486,0.0002564,2]
[314364379,1708235432497,-999.74511259,0.0002614,2]
[314364381,1708235432506,-826.61791315,0.0002614,2]
[314364383,1708235432518,-850.4421304,0.0002614,2]
[314364385,1708235432528,-5000.0,0.0002614,2]
[314364387,1708235432537,-3107.59377134,0.00026156,2]
[314364389,1708235432547,-5000.0,0.00026158,2]
[314364391,1708235432556,-3091.20547624,0.00027,2]
[314364393,1708235432566,-200.3472215,0.00027123,2]
[314364395,1708235432575,-174.27358346,0.00027287,3]
[314364397,1708235432585,-200.3472215,0.000273,2]
[314364399,1708235432594,-8456.68757543,0.00027386,2]
[314364401,1708235432603,-216.61,0.00027387,3]
[314364403,1708235432612,-2241.11,0.00027387,3]
[314364405,1708235432623,-649.83,0.00027387,3]
[314364407,1708235432633,-2853.67,0.00027387,3]
[314364409,1708235432642,-2378.06,0.00027387,3]
[314364411,1708235432651,-405.92914822,0.00027397,2]
[314364413,1708235432660,-551.55464271,0.00027397,2]
[314364415,1708235432669,-180.50850121,0.00027397,2]
[314364417,1708235432679,-500.0,0.00027397,2]
[314364419,1708235432688,-500.0,0.00027397,2]
[314364421,1708235432697,-500.0,0.00027397,2]
[314364423,1708235432707,-500.0,0.00027397,2]
[314364425,1708235432716,-500.0,0.00027397,2]
[314364427,1708235432725,-500.0,0.00027397,2]
[314364429,1708235432734,-400.09471443,0.00027397,2]
[314364431,1708235432744,-500.0,0.00027397,2]
[314364433,1708235432753,-500.0,0.00027397,2]
[314364435,1708235432763,-500.0,0.00027397,2]
[314364436,1708235432772,-500.0,0.00027397,2]
[314364439,1708235432782,-500.0,0.00027397,2]
[314364454,1708235432895,-500.0,0.00027397,2]
[314364456,1708235432933,-500.0,0.00027397,2]
[314364458,1708235432942,-500.0,0.00027397,2]
[314364460,1708235432951,-500.0,0.00027397,2]
[314364462,1708235432961,-500.0,0.00027397,2]
[314364464,1708235432970,-500.0,0.00027397,2]
[314364466,1708235432979,-500.0,0.00027397,2]
[314364468,1708235432989,-519.71443797,0.00027397,2]
[314364470,1708235432998,-500.0,0.00027397,2]
[314364472,1708235433009,-500.0,0.00027397,2]
[314364474,1708235433019,-500.0,0.00027397,2]
[314364476,1708235433027,-500.0,0.00027397,2]
[314364478,1708235433036,-205.61204388,0.00027397,2]
[314364480,1708235433045,-500.0,0.00027397,2]
[314364482,1708235433055,-500.0,0.00027397,2]
[314364484,1708235433065,-500.0,0.00027397,2]
[314364486,1708235433074,-500.0,0.00027397,2]
[314364488,1708235433083,-500.0,0.00027397,2]
[314364490,1708235433092,-500.0,0.00027397,2]
[314364492,1708235433101,-500.0,0.00027397,2]
[314364494,1708235433111,-590.46145876,0.00027397,2]
[314364496,1708235433120,-500.0,0.00027397,2]
[314364498,1708235433129,-500.0,0.00027397,2]
[314364500,1708235433138,-911.02,0.00027397,2]
[314364502,1708235433148,-500.0,0.00027397,2]
[314364504,1708235433157,-500.0,0.00027397,2]
[314364506,1708235433167,-283.64291056,0.00027397,2]
[314364508,1708235433176,-500.0,0.00027397,2]
[314364510,1708235433186,-500.0,0.00027397,2]
[314364512,1708235433195,-846.32,0.00027397,2]
[314364514,1708235433204,-564.59138388,0.00027397,2]
[314364516,1708235433215,-500.0,0.00027397,2]
[314364518,1708235433224,-616.22470133,0.00027397,2]
[314364520,1708235433233,-500.0,0.00027397,2]
[314364522,1708235433243,-500.0,0.00027397,2]
[314364524,1708235433251,-500.0,0.00027397,2]
[314364525,1708235433261,-500.0,0.00027397,2]
[314364527,1708235433270,-500.0,0.00027397,2]
[314364529,1708235433279,-500.0,0.00027397,2]
[314364531,1708235433288,-500.0,0.00027397,2]
[314364533,1708235433297,-500.0,0.00027397,2]
[314364535,1708235433307,-507.44634738,0.00027397,2]
[314364537,1708235433317,-500.0,0.00027397,2]
[314364539,1708235433326,-500.0,0.00027397,2]
[314364541,1708235433335,-500.0,0.00027397,2]
[314364543,1708235433345,-549.68,0.00027397,2]
[314364545,1708235433354,-500.0,0.00027397,2]
[314364547,1708235433363,-534.99074956,0.00027397,2]
[314364549,1708235433373,-500.0,0.00027397,2]
[314364551,1708235433383,-500.0,0.00027397,2]
[314364553,1708235433392,-169.63304512,0.00027397,2]
[314364594,1708235438445,-330.36695488,0.00027397,2]
[314364595,1708235438455,-507.03918604,0.00027397,2]
[314364596,1708235438465,-500.0,0.00027397,2]
[314364597,1708235438475,-500.0,0.00027397,2]
[314364598,1708235438484,-158.53129283,0.00027397,2]
[314364599,1708235438499,-892.67440871,0.00027397,2]
[314364643,1708235443469,-16.09203705,0.00027397,2]
[314365681,1708237756268,-427.90583504,0.0002469,2]
[314365682,1708237756292,-169.725628,0.00024691,2]
[314365683,1708237756317,-751.34868967,0.00024883,2]
[314365684,1708237792447,1740.3321783,0.00022783,2]
[314365727,1708237837799,-169.747925,0.00024984,2]
[314365728,1708237837809,-168.768692,0.00025011,2]
[314365729,1708237837818,-427.90583504,0.00025195,2]
[314365730,1708237837828,-155.25057702,0.00025196,2]
[314365731,1708237837839,-200.3472215,0.000261,2]
[314365732,1708237837848,-178.04235451,0.00026266,3]
[314365734,1708237837857,-1004.27641323,0.00026329,2]
[314365736,1708237837867,-50000.0,0.00026346,2]
[314365738,1708237837876,-3304.03674945,0.00026366,2]
[314365739,1708237837884,-2300.9,0.00026372,3]
[314365740,1708237837894,-1917.41,0.00026372,3]
[314365741,1708237837903,-1597.85,0.00026372,3]
[314365742,1708237837912,-741.06705444,0.00026377,2]
[314365743,1708237837921,-9348.44430798,0.00026377,2]
[314365744,1708237837930,-10965.63739682,0.00026382,2]
[314365745,1708237837940,-991.21102484,0.00026384,2]
[314365746,1708237837949,-844.35225471,0.00026398,2]
[314365747,1708237837959,-620.0260339,0.00026405,2]
[314365748,1708237837968,-309.3558055,0.00026478,2]
[314365749,1708237837978,-200.3472215,0.00026478,2]
[314365750,1708237837987,-200.3472215,0.00026478,2]
[314365751,1708237837996,-200.3472215,0.00026478,2]
[314365752,1708237838006,-200.3472215,0.00026478,2]
[314365753,1708237838015,-307.6863695,0.00027123,2]
[314365754,1708237838024,-317.4396204,0.00027123,2]
[314365755,1708237838033,-200.3472215,0.00027123,2]
[314365756,1708237838043,-155.31725602,0.00027197,2]
[314365757,1708237838053,-155.83992726,0.0002726,2]
[314365758,1708237838062,-255.58,0.00027287,3]
[314365759,1708237838071,-766.74,0.00027287,3]
[314365760,1708237838081,-151.0,0.00027287,2]
[314365761,1708237838191,-435.34679492,0.00027296,2]
[314365762,1708237838200,-70038.92225258,0.00027297,2]
[314365763,1708237838210,-151.0,0.00027297,2]
[314365764,1708237838219,-151.0,0.00027297,2]
[314365765,1708237838229,-151.0,0.00027297,2]
[314365766,1708237838238,-155.317256,0.00027359,2]
[314365767,1708237838247,-652.47978982,0.00027395,2]
[314365768,1708237838257,-500.0,0.00027397,2]
[314365769,1708237838266,-500.0,0.00027397,2]
[314365770,1708237838275,-500.0,0.00027397,2]
[314365771,1708237838285,-500.0,0.00027397,2]
[314365772,1708237838293,-500.0,0.00027397,2]
[314365773,1708237838303,-500.0,0.00027397,2]
[314365774,1708237838313,-534.04189511,0.00027397,2]
[314365775,1708237838322,-500.0,0.00027397,2]
[314365776,1708237838332,-500.0,0.00027397,2]
[314365777,1708237838341,-332.94825931,0.00027397,2]
[314365778,1708237838350,-480.011166,0.00027397,2]
[314365779,1708237838360,-500.0,0.00027397,2]
[314365780,1708237838368,-500.0,0.00027397,2]
[314365781,1708237838377,-190.02989101,0.00027397,2]
[314365782,1708237838386,-500.0,0.00027397,2]
[314365783,1708237838396,-500.0,0.00027397,2]
[314365784,1708237838405,-500.0,0.00027397,2]
[314365785,1708237838414,-500.0,0.00027397,2]
[314365786,1708237838424,-201.23905066,0.00027397,2]
[314365787,1708237838434,-500.0,0.00027397,2]
[314365788,1708237838445,-500.0,0.00027397,2]
[314365789,1708237838454,-500.0,0.00027397,2]
[314365790,1708237838463,-176.65796769,0.00027397,2]
[314365791,1708237838473,-500.0,0.00027397,2]
[314365792,1708237838482,-254.83079031,0.00027397,2]
[314365793,1708237838491,-500.0,0.00027397,2]
[314365794,1708237838500,-500.0,0.00027397,2]
[314365795,1708237838509,-500.0,0.00027397,2]
[314365796,1708237838519,-500.0,0.00027397,2]
[314365797,1708237838528,-500.0,0.00027397,2]
[314365798,1708237838538,-500.0,0.00027397,2]
[314365799,1708237838547,-500.0,0.00027397,2]
[314365800,1708237838557,-500.0,0.00027397,2]
[314365801,1708237838567,-500.0,0.00027397,2]
[314365802,1708237838576,-500.0,0.00027397,2]
[314365803,1708237838585,-500.0,0.00027397,2]
[314365804,1708237838594,-500.0,0.00027397,2]
[314365805,1708237838604,-500.0,0.00027397,2]
[314365806,1708237838614,-500.0,0.00027397,2]
[314365807,1708237838624,-500.0,0.00027397,2]
[314365808,1708237838634,-500.0,0.00027397,2]
[314365809,1708237838643,-506.08199157,0.00027397,2]
[314365810,1708237838652,-455.52626437,0.00027397,2]
[314365811,1708237838661,-500.0,0.00027397,2]
[314365812,1708237838670,-500.0,0.00027397,2]
[314365813,1708237838680,-500.0,0.00027397,2]
[314365814,1708237838689,-367.17290942,0.00027397,2]
[314365815,1708237838699,-1000.0,0.00027397,2]
[314365816,1708237838709,-500.0,0.00027397,2]
[314365817,1708237838719,-500.0,0.00027397,2]
[314365818,1708237838728,-500.0,0.00027397,2]
[314365819,1708237838737,-504.02859752,0.00027397,2]
[314365820,1708237838747,-500.0,0.00027397,2]
[314365821,1708237838757,-500.0,0.00027397,2]
[314365822,1708237838767,-500.0,0.00027397,2]
[314365823,1708237838776,-500.0,0.00027397,2]
[314365824,1708237838786,-500.0,0.00027397,2]
[314365825,1708237838795,-500.0,0.00027397,2]
[314365826,1708237838804,-500.0,0.00027397,2]
[314365827,1708237838814,-500.0,0.00027397,2]
[314365828,1708237838823,-500.0,0.00027397,2]
[314365829,1708237838832,-1003.86,0.00027397,2]
[314365830,1708237838842,-500.0,0.00027397,2]
[314365831,1708237838852,-500.0,0.00027397,2]
[314365832,1708237838861,-500.0,0.00027397,2]
[314365833,1708237838871,-849.52,0.00027397,2]
[314365834,1708237838880,-500.0,0.00027397,2]
[314365835,1708237838891,-500.0,0.00027397,2]
[314365836,1708237838900,-500.0,0.00027397,2]
[314365837,1708237838909,-500.0,0.00027397,2]
[314365838,1708237838919,-172.36693185,0.00027397,2]
[314365839,1708237838928,-500.0,0.00027397,2]
[314365840,1708237838936,-500.0,0.00027397,2]
[314365841,1708237838947,-505.05894013,0.00027397,2]
[314365842,1708237838956,-500.0,0.00027397,2]
[314365843,1708237838965,-500.0,0.00027397,2]
[314365844,1708237838974,-500.0,0.00027397,2]
[314365845,1708237838982,-500.0,0.00027397,2]
[314365846,1708237838991,-500.0,0.00027397,2]
[314365847,1708237839001,-504.42826121,0.00027397,2]
[314365848,1708237839010,-500.0,0.00027397,2]
[314365849,1708237839019,-500.0,0.00027397,2]
[314365850,1708237839029,-500.0,0.00027397,2]
[314365851,1708237839038,-500.0,0.00027397,2]
[314365852,1708237839048,-378.5359668,0.00027397,2]
[314365853,1708237839057,-500.0,0.00027397,2]
[314365854,1708237839066,-500.0,0.00027397,2]
[314365855,1708237839075,-500.0,0.00027397,2]